Cogmind - Beta 13 @@@ ROGUE MODE // 2024.07.30 @ 22:33:40 Player: Changeling Result: Destroyed by Y-45 Defender with Beam Rifle Performance ------------- Evolutions (1) 500 Regions Visited (3) 600 Robots Destroyed (53) 265 Value Destroyed (1310) 1310 Prototype IDs (1) 20 Alien Tech Used (0) 0 Bonus (46) 46 TOTAL SCORE: 2741 Bonus ------- High Alert Combat Kills 46 Cogmind --------- Core Integrity 0/400 Matter 447/450 Energy 245/250 System Corruption 0% Temperature Cool (49) Movement Hovering (300) Ox4 Location -9/Materials Parts ------- > --- POWER (1) -------- Ion Engine > --- PROPULSION (2) --- Airjet > --- UTILITY (4) ------ Large Storage Unit Large Matter Pod Signal Interpreter Improved Targeting Computer > --- WEAPON (2) ------- Beam Rifle Assault Rifle > --- INVENTORY (15) --- Ion Engine Airjet Airjet Improved VTOL Module Improved VTOL Module Improved VTOL Module Improved VTOL Module Cryofiber Web Cryofiber Web Heat Sink Large Storage Unit Advanced Visual Processing Unit Shield Generator High-powered Tractor Beam Light Cannon Peak State ------------ > --- POWER ------------ Ion Engine > --- PROPULSION ------- Airjet Airjet > --- UTILITY ---------- Large Storage Unit Large Matter Pod Signal Interpreter Improved Targeting Computer > --- WEAPON ----------- Beam Rifle Assault Rifle > --- INVENTORY -------- Aluminum Leg Improved Aluminum Leg Airjet Airjet Improved VTOL Module Improved VTOL Module Improved VTOL Module Improved VTOL Module Cryofiber Web Cryofiber Web Large Storage Unit Advanced Visual Processing Unit Shield Generator High-powered Tractor Beam Light Cannon [Rating: 19] Favorites ----------- Power Ion Engine Engine Ion Engine Propulsion Light Treads Treads Light Treads Wheel Wheel Hover Unit Airjet Flight Unit Improved VTOL Module Utility Large Storage Unit Device Tractor Beam Storage Large Storage Unit Processor Signal Interpreter Weapon Assault Rifle Energy Gun Beam Rifle Ballistic Gun Assault Rifle Ballistic Cannon Light Cannon Launcher Grenade Launcher Build | -11 -10 -10 -9 ------- Run | Yrd Mat Min Mat Slots Evolved 2 | . . . 2 Power . | . . . . Propulsion . | . . . . Utility 2 | . . . 2 Weapon . | . . . . Parts Attached 35 | 6 9 2 18 Power 5 | 1 1 . 3 Engine 5 | 1 1 . 3 Core . | . . . . Reactor . | . . . . Propulsion 12 | 2 . 2 8 Treads 2 | 2 . . . Leg . | . . . . Wheel 6 | . . 2 4 Hover 2 | . . . 2 Flight 2 | . . . 2 Utility 8 | 1 3 . 4 Device 1 | . 1 . . Storage 4 | 1 1 . 2 Processor 3 | . 1 . 2 Hackware . | . . . . Protection . | . . . . Artifact . | . . . . Weapon 10 | 2 5 . 3 Energy Gun 1 | . . . 1 Energy Cannon . | . . . . Ballistic Gun 4 | 2 1 . 1 Ballistic Cannon 2 | . 2 . . Launcher 3 | . 2 . 1 Special Weapon . | . . . . Impact Weapon . | . . . . Slashing Weapon . | . . . . Piercing Weapon . | . . . . Special Melee Weapon . | . . . . Unidentified Prototypes 1 | . . . 1 Parts Lost 10 | . 2 . 8 Power 2 | . 1 . 1 Propulsion 4 | . . . 4 Utility . | . . . . Weapon 4 | . 1 . 3 Highest Loss Streak 2 | . 2 . 2 To Critical Strikes . | . . . . Average Slot Usage (%) 97 | . 94 100 98 Engine 11 | . 13 14 10 Treads 10 | . 28 17 . Wheel 10 | . . 10 16 Hover 2 | . . . 4 Device 1 | . 3 . . Storage 18 | . 14 14 21 Processor 15 | . 5 14 21 Energy Gun 2 | . . . 4 Ballistic Gun 10 | . 22 . 5 Ballistic Cannon 9 | . 1 28 11 Launcher 1 | . 4 . . Naked Turns . | . . . . Heaviest Build 34 | 12 31 31 34 Greatest Support 40 | 40 40 40 32 Greatest Overweight (x) 10 | . . 1 10 Average Overweight (x) . | . . . 1 Largest Inventory Capacity 15 | 8 15 15 15 Average Capacity 14 | 7 12 15 15 Most Carried 15 | 7 15 15 15 Average Carried 12 | 4 10 13 14 Final Capacity 15 | 8 15 15 15 Final Carried 15 | 5 13 15 15 Class Distribution -------------------- 100% | Mutant Dominant Class ---------------- Mutant | -10/Materials Mutant | -10/Mines Mutant | -9/Materials Resources | -11 -10 -10 -9 ----------- Run | Yrd Mat Min Mat Matter Collected 1634 | 137 396 176 925 Remotely 75 | . 75 . . Salvage Created 1244 | . 286 35 923 Parts 94 | . 21 5 68 Haulers Intercepted . | . . . . Recyclers Shooed 1 | . . . 1 Parts Field Recycled . | . . . . Retrieved Matter . | . . . . Parts Self-Destructed . | . . . . Prevented . | . . . . Kills | -11 -10 -10 -9 ------- Run | Yrd Mat Min Mat Combat Hostiles Destroyed 40 | . 7 4 29 Guns 17 | . 5 . 12 Cannons 19 | . 1 4 14 AOE 4 | . 1 . 3 Classes Destroyed 10 | . 5 2 3 Worker 3 | . 3 . . Builder 2 | . . . 2 Tunneler 1 | . . 1 . Recycler 1 | . 1 . . Watcher 6 | . 1 . 5 Swarmer 14 | . 3 3 8 Grunt 17 | . 4 . 13 Duelist 2 | . . . 2 Sentry 6 | . . . 6 Demolisher 1 | . . 1 . Best Kill Streak 8 | . 8 4 5 Combat Bots Only 4 | . 3 2 4 Max Kills in Single Turn 3 | . 3 1 2 Gunslinging . | . . . . Exploded 2 | . 1 . 2 Melee . | . . . . Uniques/NPCs Destroyed . | . . . . Combat | -11 -10 -10 -9 -------- Run | Yrd Mat Min Mat Hostile Shots Fired 216 | . 53 33 130 Missed 55 | . 14 11 30 Damage Taken 1825 | . 442 177 1206 Core 566 | . 112 45 409 Absorbed by Shields . | . . . . Regen/Repaired (Parts) 29 | . . . 29 Core Remaining (%) 68 | 100 . 37 . Volleys Fired 151 | . 38 14 99 Largest 2 | . 2 2 2 Hottest 76 | . 55 70 76 Shots Fired 258 | . 50 28 180 Gun 112 | . 34 . 78 Cannon 136 | . 10 28 98 Launcher 10 | . 6 . 4 Special . | . . . . Kinetic 226 | . 44 28 154 Thermal 22 | . . . 22 Explosive 10 | . 6 . 4 Electromagnetic . | . . . . Robot Hit Streak 13 | . 6 4 13 Robot Miss Streak 4 | . 3 4 4 Penetration Max . | . . . . Secondary Targets . | . . . . Shots Hit Robots 156 | . 30 12 114 Core Hits 80 | . 18 5 57 Critical Kills 1 | . 1 . . Critical Parts Destroyed . | . . . . Critical Strikes 5 | . 1 . 4 Burn 2 | . . . 2 Destroy 1 | . 1 . . Blast 2 | . . . 2 Melee Attacks . | . . . . Impact . | . . . . Slashing . | . . . . Piercing . | . . . . Sneak Attacks . | . . . . Combat Hostiles . | . . . . Follow-up Attacks . | . . . . Damage Inflicted 3168 | . 743 237 2188 Guns 987 | . 288 . 699 Cannons 1428 | . 103 237 1088 Explosions 753 | . 352 . 401 Melee . | . . . . Ramming . | . . . . Kinetic 2228 | . 391 237 1600 Thermal 187 | . . . 187 Explosive 753 | . 352 . 401 Electromagnetic . | . . . . Impact . | . . . . Slashing . | . . . . Piercing . | . . . . Highest Corruption . | . . . . Average Corruption . | . . . . Corruption Purged . | . . . . Corruption Blocked . | . . . . Overload Shots . | . . . . Overflow Damage 39 | . . 17 22 Projectiles 39 | . . 17 22 Explosions . | . . . . Melee . | . . . . Knockbacks 13 | . 3 2 8 Impact . | . . . . Kinetic 13 | . 3 2 8 Secondary . | . . . . Self-Inflicted Damage 119 | . 79 . 40 Shots 4 | . 2 . 2 Rammed 1 | . 1 . . Targets Rammed 1 | . 1 . . Kicked . | . . . . Crushed . | . . . . Highest Temperature 90 | . 2 36 90 Average Temperature 24 | . 1 14 27 Received Heat Transfer 585 | . 120 . 465 Siege Activations . | . . . . Robots Corrupted . | . . . . Combat Hostiles . | . . . . Parts Fried . | . . . . Impact Corruptions . | . . . . Robots Melted . | . . . . Combat Hostiles . | . . . . Parts Melted 2 | . . . 2 Heat Transferred 629 | . . . 629 Parts Sabotaged . | . . . . Parts Stolen . | . . . . Parts Stripped . | . . . . Power Chain Reactions . | . . . . Alert | -11 -10 -10 -9 ------- Run | Yrd Mat Min Mat Peak Influence 472 | . 216 132 472 Initial 51 | . . 37 51 Average 178 | . 52 99 273 Maximum Alert Level 2 | . 1 . 2 Low Security (%) 60 | 100 97 100 30 Level 1 31 | . 2 . 54 Level 2 7 | . . . 14 Level 3 . | . . . . Level 4 . | . . . . Level 5 . | . . . . High Security . | . . . . Max Security . | . . . . Squads Dispatched 3 | . 2 . 1 Investigation . | . . . . Extermination . | . . . . Reinforcement 3 | . 2 . 1 Assault . | . . . . Garrison . | . . . . Intercept . | . . . . Searches Triggered . | . . . . Construction Impeded . | . . . . Haulers Reinforced . | . . . . Active Scanning Responses . | . . . . Cargo Convoy Interrupts . | . . . . Stealth | -11 -10 -10 -9 --------- Run | Yrd Mat Min Mat Distress Signals 5 | . 2 . 3 Communications Jammed . | . . . . Distress Signals . | . . . . Times Spotted 65 | . 15 5 45 Peak Tracking Total 5 | . 4 2 5 Tactical Retreats 2 | . . . 2 Traps | -11 -10 -10 -9 ------- Run | Yrd Mat Min Mat Traps Triggered . | . . . . Indirectly . | . . . . Trap Hack Attempts . | . . . . Triggered . | . . . . Disarmed . | . . . . Reprogrammed . | . . . . Reused . | . . . . Traps Extracted . | . . . . Installed . | . . . . Triggered . | . . . . Machines | -11 -10 -10 -9 ---------- Run | Yrd Mat Min Mat Machines Disabled 4 | . 2 . 2 Max in Single Turn 1 | . 1 . 1 Machines Repaired . | . . . . Machines Dismantled . | . . . . Machines Sabotaged . | . . . . Overloaded Fab Kills . | . . . . Hacking | -11 -10 -10 -9 --------- Run | Yrd Mat Min Mat Machines Accessed 7 | . 3 . 4 Terminals 6 | . 3 . 3 Fabricators . | . . . . Repair Stations 1 | . . . 1 Recycling Units . | . . . . Scanalyzers . | . . . . Garrison Access . | . . . . Total Hacks 15 | . 8 . 7 Successful 6 | . 3 . 3 Failed 9 | . 5 . 4 Catastrophic 1 | . 1 . . Database Lockouts . | . . . . Manual . | . . . . Terminals 13 | . 8 . 5 Fabricators . | . . . . Repair Stations 2 | . . . 2 Recycling Units . | . . . . Scanalyzers . | . . . . Garrison Access . | . . . . Terminal Hacks 4 | . 3 . 1 Record 1 | . . . 1 Alert Level 1 | . 1 . . Security Status 1 | . 1 . . Surveillance Status 1 | . 1 . . Fabricator Hacks . | . . . . Repair Station Hacks 2 | . . . 2 Scan Component 1 | . . . 1 Repair 1 | . . . 1 Recycling Unit Hacks . | . . . . Scanalyzer . | . . . . Garrison Access Hacks . | . . . . Unauthorized Hacks . | . . . . Terminals . | . . . . Fabricators . | . . . . Repair Stations . | . . . . Recycling Units . | . . . . Scanalyzers . | . . . . Garrison Access . | . . . . Data Cores Recovered . | . . . . Used . | . . . . Hacking Detections 2 | . 1 . 1 Full Trace Events . | . . . . Feedback Events . | . . . . Feedback Blocked . | . . . . Robot Schematics Acquired . | . . . . Robots Built . | . . . . Authchips . | . . . . Time . | . . . . Total Robot Build Rating . | . . . . Part Schematics Acquired . | . . . . Parts Built . | . . . . Authchips . | . . . . Time . | . . . . Total Part Build Rating . | . . . . Parts Repaired 1 | . . . 1 Time 26 | . . . 26 Parts Recycled . | . . . . Recycled Matter . | . . . . Retrieved Matter . | . . . . Retrieved Components . | . . . . Parts Scanalyzed . | . . . . Part Schematics Acquired . | . . . . Parts Damaged . | . . . . Bothacking | -11 -10 -10 -9 ------------ Run | Yrd Mat Min Mat Used RIF Installer . | . . . . Robots Hacked . | . . . . Non-combat . | . . . . Combat . | . . . . Robot Hacks Applied . | . . . . Relay Couplers Released . | . . . . Fabnet Peak Effective % . | . . . . Robots Rewired . | . . . . Allies Hacked . | . . . . Hacks Repelled . | . . . . Allies | -11 -10 -10 -9 -------- Run | Yrd Mat Min Mat Total Allies . | . . . . Largest Group . | . . . . Highest-Rated Group . | . . . . Highest-Rated Ally . | . . . . Total Orders . | . . . . Ally Attacks . | . . . . Total Damage . | . . . . Kills . | . . . . Allies Corrupted . | . . . . Allies Melted . | . . . . Intel | -11 -10 -10 -9 ------- Run | Yrd Mat Min Mat Robot Analysis Total . | . . . . Derelict Logs Recovered 1 | . . 1 . Drone Launches . | . . . . Drone Recoveries . | . . . . Exploration | -11 -10 -10 -9 ------------- Run | Yrd Mat Min Mat Turns Passed 2750 | 81 856 291 1522 Spaces Moved 1614 | 47 455 183 929 Core 13 | 9 . . 4 Treads 581 | 38 455 88 . Legs . | . . . . Wheels 871 | . . 95 776 Hover 148 | . . . 148 Flight 1 | . . . 1 Fastest Speed 50 | 50 160 105 95 Average Speed 129 | 138 160 131 114 Slowest Speed 550 | 160 160 160 550 Overloaded Moves . | . . . . Propulsion Burnouts . | . . . . Robots Hopped . | . . . . Cave-ins Triggered . | . . . . Exploration Rate (%) 54 | 4 80 50 83 Regions Visited 3 Branch Regions 1 Pre-discovered Areas . | . . . . Known Exits Taken 2 | . 1 1 . Unknown Exits Taken 1 | 1 . . . Scrap Searched . | . . . . Spaces Dug 8 | . 8 . . Terrain Destroyed 100 | . 80 . 20 Melee . | . . . . Projectile . | . . . . AOE 100 | . 80 . 20 Terrain Rammed . | . . . . Walls Destroyed . | . . . . Machines Disabled . | . . . . Actions | -11 -10 -10 -9 --------- Run | Yrd Mat Min Mat Total 2013 | 63 533 204 1213 Wait 146 | . 12 4 130 Move 1611 | 46 454 182 929 Hop . | . . . . Pick Up 51 | 11 14 2 24 Fast Attach . | . . . . Attach 23 | 6 5 . 12 Detach 2 | . 2 . . Swap 12 | . 4 2 6 Drop 16 | . 3 . 13 Fire 151 | . 38 14 99 Melee . | . . . . Ram . | . . . . Kick . | . . . . Crush 1 | . 1 . . Escape Stasis . | . . . . Rewire . | . . . . Trap . | . . . . Miscellaneous . | . . . . Route ------- -11/Scrapyard -10/Materials (discovered 4 exits: *Mat x2 / *Min x2) -10/Mines -9/Materials (discovered 4 exits: *Mat x3 / [*Min]) History --------- Turn | Location | Event 30 | -11/Scrapyard | Discovered new exit (range 15) 82 | -11/Scrapyard | Entered Materials 314 | -10/Materials | Discovered new exit (range 9) 318 | -10/Materials | Build established: Mutant 474 | -10/Materials | Discovered new exit (range 9) 589 | -10/Materials | Discovered new exit (range 5) 599 | -10/Materials | Identified exit to Materials 854 | -10/Materials | Discovered new exit (range 12) 936 | -10/Materials | Identified exit to Mines 938 | -10/Materials | Entered Mines 964 | -10/Mines | Learned Materials trap positions 982 | -10/Mines | Core integrity fell below 50% 1111 | -10/Mines | Assembled infested the area 1116 | -10/Mines | Assisted by a Guerilla fighting off Assembled 1216 | -10/Mines | Discovered exit to Materials (range 11) 1229 | -10/Mines | Entered Materials 1229 | -9/Materials | Evolved 2 slots: Utility x2 1230 | -9/Materials | Loaded intel: 13 trap records 1749 | -9/Materials | Discovered new exit (range 16) 1776 | -9/Materials | Identified exit to Materials 1978 | -9/Materials | Discovered new exit (range 15) 2056 | -9/Materials | Core integrity fell below 50% 2135 | -9/Materials | Core integrity fell below 20% 2209 | -9/Materials | Discovered exit to Materials (range 10) 2253 | -9/Materials | Repaired Lrg. Matter Pod 2728 | -9/Materials | Discovered exit to Materials (range 16) 2751 | -9/Materials | Destroyed by Y-45 Defender with Beam Rifle Last Messages --------------- 02464_ K-01 Serf collects debris. 02471_ U-05 Engineer builds a Door. 02472_ K-01 Serf collects debris. 02503_ W-16 Scout destroyed. 02523_ Acquired 25 matter. 02524_ R-06 Scavenger collects Visual Processing Unit. 02525_ Acquired 21 matter. 02637_ G-34 Mercenary destroyed. 02645_ Processing Tank disabled. 02646_ Y-45 Defender destroyed. 02653_ Acquired 88 matter. 02656_ Acquired 24 matter. 02660_ Dropped Imp. Aluminum Leg. 02660_ Dropped Aluminum Leg. 02664_ Acquired Ion Engine. 02667_ Acquired Heat Sink. 02728_ EXIT=FOUND: MATERIALS 02748_ Airjet destroyed. 02751_ Critical hit (Burn: +37). Map ----- +----------------------------------------------------+ | ?????# # #?????????? | | ?????# + #######???? | | ?????# # # ???? | | ?????# ### # """"" !#? | | ?????# #?# !# """"" #? | | ?????# #?# !#=""""" #? | | ?????###########?# +[= #? | | ?????????????????# !*#[*"""" #? | | ????????#######??# ==%#=""""" #? | | ????????# #### # """"" ??? | | ????????# # ??? | | ????????# ########??? | | ????????# #?????????? | | ????????# ##+########?????????? | | ????????## ## #????????????? | | ?????????# ## """ #????????????? | | ?????????# ## """ #????????????? | | ?????????# ## """ #????????????? | | ?????????# ## #????????????? | | ?????????# ## #????????????? | | ????##???# #########????????????? | | ##### #??# #????????????????????? | | # [= ?# #????????????????????? | | #" [= ?# #????????????????????? | | #" [= # #????????????????????? | | #" #@a #????????????????????? | | #T Y #????????????????????? | | #" """ # #????????????????????? | | ?" """ # #????????????????????? | | ?? """ ?# #????????????????????? | | ?? ?# #????????????????????? | | ??#####??# #????????????????????? | | ?????????# #????????????????????? | | ?????????# #????????????????????? | | ?????????# #????????????????????? | | ?????????? #????????????????????? | | ?????????? +????????????????????? | | ?????????? < #????????????????????? | | ?????????? #????????????????????? | | ??????????####????????????????????? | | ??????????????????????????????????? | | ??????????????????????????????????? | | ??????????????????????????????????? | | ??????????????????????????????????? | | ??????????????????????????????????? | | ??????????????????????????????????? | | ??????????????????????????????????? | | ??????????????????????????????????? | | ??????????????????????????????????? | | | +----------------------------------------------------+ Best States ------------- Heat Dissipation 28 Energy Generation 10 Energy Capacity 250 Matter Stores 450 Matter Capacity 450 Sight Range 16 Terrain Scan Density 10 Evasion (%) 50 Targeting Accuracy 6 Recoil Reduction 2 Item Schematics ----------------- None Robot Schematics ------------------ None Fabricated ------------ Nothing Alien Tech Used ----------------- None Achievements -------------- None Challenges ------------ None Game ------ Seed SeismicPlatingShredder Manual? 0 Play Time 00:27:34 Cumulative 8.4 hours Start 2024.07.30 @ 22:08:09 End 2024.07.30 @ 22:33:40 Sessions 1 Manual Loads 0 Difficulty Rogue Special Mode None Game No. 8 Rogue 8 Adventurer 0 Explorer 0 Win Type - Total 0 Types 0/0/0/0/0/0/0/0/0 Lore% 6 Gallery% 17 Achievement% 17 Wizard Run 0 Options --------- Layout 1 ASCII 0 Keyboard 0 Movement Arrows Keybinds 0 Fullscreen 1 Font 24/Smallcaps Map View 50x35 Zoom Use 0% Tactical HUD 1 Map Filters NONE Filters NONE Steam 1 RUN: ddfc25c8-c527-45dc-ab2c-a11414e95c86